fUST/lending_fUST_20250530
["ID","MTS","AMOUNT","RATE_DAILY","PERIOD"]
[362963909,1748537446147,-637.94,0.00023561,2]
[362963911,1748537446157,-430.0,0.00023561,2]
[362963913,1748537446167,-1078.54,0.00023561,2]
[362963915,1748537446177,-1256.97,0.00023561,2]
[362963917,1748537446187,-430.0,0.00023561,2]
[362963919,1748537446199,-996.57,0.00023561,2]
[362963920,1748537446209,-1214.32,0.00023561,2]
[362963922,1748537446219,-795.2,0.00023561,2]
[362963925,1748537446229,-1346.61,0.00023561,2]
[362963927,1748537446240,-328.24,0.000236,7]
[362963929,1748537446250,-2000.0,0.00023688,2]
[362963931,1748537446260,-1387.74887818,0.00023693,9]
[362963933,1748537446270,-1054.4,0.000237,7]
[362963935,1748537446281,-313.16576315,0.00023835,2]
[362963937,1748537446291,-364.96,0.00023835,2]
[362963939,1748537446301,-625.32,0.00023835,2]
[362963941,1748537446311,-534.32,0.00023835,2]
[362963943,1748537446320,-447.31,0.00023835,2]
[362963945,1748537446331,-430.0,0.00023835,2]
[362963947,1748537446341,-430.0,0.00023835,2]
[362963949,1748537446351,-1577.09,0.00023835,2]
[362963951,1748537446361,-3728.52,0.00023835,2]
[362963953,1748537446371,-637.94,0.00023835,2]
[362963955,1748537446382,-382.86,0.00023835,2]
[362963957,1748537446391,-1078.54,0.00023835,2]
[362963959,1748537446401,-1256.97,0.00023835,2]
[362963961,1748537446410,-430.0,0.00023835,2]
[362963963,1748537446420,-996.57,0.00023835,2]
[362963965,1748537446430,-1214.32,0.00023835,2]
[362963967,1748537446440,-795.2,0.00023835,2]
[362963969,1748537446450,-1346.61,0.00023835,2]
[362963971,1748537446461,-1387.74887818,0.00023866,10]
[362963973,1748537446471,-3000.0,0.00023886,3]
[362963975,1748537446481,-347.37433277,0.000239,2]
[362963977,1748537446490,-1285.13,0.0002397,2]
[362963979,1748537446501,-200.0,0.00023979,120]
[362963981,1748537446512,-4000.0,0.00023986,3]
[362963982,1748537446522,-160.0,0.00023986,3]
[362963985,1748537446532,-5000.0,0.00024002,2]
[362963986,1748537446544,-1387.74887818,0.00024038,10]
[362963989,1748537446553,-63509.76213367,0.00024108,2]
[362964008,1748537446732,-430.0,0.00019178,2]
[362964010,1748537446742,-430.0,0.00019452,2]
[362964012,1748537446751,-104802.47385633,0.00024108,2]
[362964014,1748537446761,-179.1175,0.00024109,2]
[362964016,1748537446771,-625.32,0.00024109,2]
[362964018,1748537446780,-534.32,0.00024109,2]
[362964020,1748537446789,-447.31,0.00024109,2]
[362964022,1748537446798,-430.0,0.00024109,2]
[362964024,1748537446807,-430.0,0.00024109,2]
[362964026,1748537446816,-1577.09,0.00024109,2]
[362964028,1748537446826,-3728.52,0.00024109,2]
[362964030,1748537446836,-637.94,0.00024109,2]
[362964032,1748537446845,-1078.54,0.00024109,2]
[362964034,1748537446854,-1256.97,0.00024109,2]
[362964036,1748537446863,-430.0,0.00024109,2]
[362964038,1748537446872,-996.57,0.00024109,2]
[362964040,1748537446882,-1214.32,0.00024109,2]
[362964042,1748537446891,-795.2,0.00024109,2]
[362964044,1748537446901,-1346.61,0.00024109,2]
[362964046,1748537446910,-4000.56,0.00024152,3]
[362964048,1748537446920,-153.0,0.00024178,2]
[362964050,1748537446929,-564.9331697,0.00024178,2]
[362964052,1748537446938,-316.0371519,0.00024178,2]
[362964054,1748537446948,-1387.74887818,0.0002421,10]
[362964056,1748537446957,-306.0,0.00024247,2]
[362964058,1748537446966,-1387.74887818,0.00024383,11]
[362964060,1748537446976,-625.32,0.00024383,2]
[362964062,1748537446985,-534.32,0.00024383,2]
[362964064,1748537446995,-447.31,0.00024383,2]
[362964066,1748537447004,-300.77493233,0.00024383,2]
[362964068,1748537447014,-430.0,0.00024383,2]
[362964070,1748537447023,-1577.09,0.00024383,2]
[362964072,1748537447032,-3728.52,0.00024383,2]
[362964075,1748537447042,-637.94,0.00024383,2]
[362964077,1748537447051,-1078.54,0.00024383,2]
[362964079,1748537447061,-1256.97,0.00024383,2]
[362964080,1748537447070,-241.37,0.00024383,2]
[362964082,1748537447079,-996.57,0.00024383,2]
[362964085,1748537447089,-1214.32,0.00024383,2]
[362964087,1748537447099,-795.2,0.00024383,2]
[362964088,1748537447108,-1346.61,0.00024383,2]
[362964090,1748537447117,-566.47168239,0.00024388,2]
[362964092,1748537447126,-7684.39,0.000244,2]
[362964095,1748537447136,-153.0,0.00024466,2]
[362964097,1748537447146,-153.0,0.00024466,2]
[362964099,1748537447155,-153.0,0.00024466,2]
[362964101,1748537447164,-153.0,0.00024466,2]
[362964103,1748537447173,-153.0,0.00024466,2]
[362964105,1748537447182,-168.9469918,0.00024466,2]
[362964106,1748537447191,-30948.75,0.000245,7]
[362964108,1748537447200,-582.380394,0.000245,3]
[362964110,1748537447209,-52601.3,0.000245,2]
[362964113,1748537447220,-5000.0,0.0002455,2]
[362964115,1748537447229,-1387.74887818,0.00024555,11]
[362964117,1748537447238,-358.235,0.00024657,3]
[362964119,1748537447248,-625.32,0.00024657,2]
[362964121,1748537447258,-534.32,0.00024657,2]
[362964123,1748537447268,-447.31,0.00024657,2]
[362964125,1748537447277,-490.71,0.00024657,2]
[362964127,1748537447287,-1577.09,0.00024657,2]
[362964129,1748537447298,-3728.52,0.00024657,2]
[362964131,1748537447308,-637.94,0.00024657,2]
[362964133,1748537447318,-1078.54,0.00024657,2]
[362964135,1748537447329,-1256.97,0.00024657,2]
[362964137,1748537447339,-996.57,0.00024657,2]
[362964139,1748537447348,-1214.32,0.00024657,2]
[362964141,1748537447357,-795.2,0.00024657,2]
[362964143,1748537447366,-1346.61,0.00024657,2]
[362964145,1748537447374,-200.0,0.00024658,15]
[362964147,1748537447385,-200.28375816,0.00024658,2]
[362964149,1748537447394,-603.021,0.00024719,15]
[362964151,1748537447403,-1387.74887818,0.00024728,11]
[362964153,1748537447413,-14654.43711757,0.000248,5]
[362964155,1748537447423,-566.47168239,0.00024818,2]
[362964157,1748537447433,-215.0738,0.00024823,2]
[362964169,1748537447542,-10000.0,0.00024891,2]
[362964171,1748537447554,-95566.53459567,0.00024892,2]
[362964173,1748537447563,-600.0,0.000249,30]
[362964175,1748537447573,-600.0,0.000249,30]
[362964177,1748537447583,-600.0,0.000249,30]
[362964179,1748537447593,-600.0,0.000249,30]
[362964181,1748537447602,-600.0,0.000249,30]
[362964183,1748537447612,-600.0,0.000249,30]
[362964185,1748537447621,-600.0,0.000249,30]
[362964187,1748537447631,-205.0,0.000249,30]
[362964189,1748537447640,-167.40859968,0.000249,2]
[362964191,1748537447650,-480.54,0.000249,2]
[362964193,1748537447659,-1054.4,0.000249,7]
[362964195,1748537447669,-199.36839248,0.000249,2]
[362964197,1748537447678,-157.62907974,0.000249,2]
[362964199,1748537447688,-754112.657035,0.000249,2]
[362964201,1748537447698,-578.21270261,0.000249,2]
[362964203,1748537447707,-152.49,0.000249,31]
[362964205,1748537447716,-152.49,0.000249,31]
[362964207,1748537447726,-152.49,0.000249,31]
[362964209,1748537447735,-152.49,0.000249,31]
[362964211,1748537447744,-152.49,0.000249,31]
[362964213,1748537447753,-152.49,0.000249,31]
[362964215,1748537447762,-152.49,0.000249,31]
[362964217,1748537447772,-152.49,0.000249,31]
[362964219,1748537447782,-152.49,0.000249,31]
[362964221,1748537447791,-152.49,0.000249,31]
[362964223,1748537447800,-152.49,0.000249,31]
[362964225,1748537447810,-152.49,0.000249,31]
[362964227,1748537447819,-152.49,0.000249,31]
[362964229,1748537447829,-1387.74887818,0.000249,12]
[362964231,1748537447839,-1502.733787,0.0002492,5]
[362964233,1748537447848,-200.0,0.00024925,120]
[362964235,1748537447858,-625.32,0.00024931,2]
[362964237,1748537447867,-534.32,0.00024931,2]
[362964239,1748537447877,-447.31,0.00024931,2]
[362964241,1748537447886,-1577.09,0.00024931,2]
[362964243,1748537447895,-3728.52,0.00024931,2]
[362964245,1748537447905,-637.94,0.00024931,2]
[362964247,1748537447914,-1078.54,0.00024931,2]
[362964249,1748537447923,-1256.97,0.00024931,2]
[362964251,1748537447932,-996.57,0.00024931,2]
[362964252,1748537447941,-1214.32,0.00024931,2]
[362964254,1748537447950,-795.2,0.00024931,2]
[362964256,1748537447960,-1346.61,0.00024931,2]
[362964258,1748537447969,-1000.0,0.0002494,5]
[362964260,1748537447979,-1000.0,0.0002496,5]
[362964262,1748537447988,-491.65,0.00024966,10]
[362964264,1748537447997,-1000.0,0.0002498,5]
[362964266,1748537448006,-1110.046307,0.0002498,5]
[362964268,1748537448016,-789.89113965,0.00024981,2]
[362964270,1748537448025,-961.0,0.00024986,2]
[362964272,1748537448034,-2228.0,0.00024986,2]
[362964274,1748537448044,-708.0,0.00024986,2]
[362964276,1748537448054,-150.528,0.00024986,2]
[362964278,1748537448063,-240.156,0.00024986,2]
[362964280,1748537448073,-195.973,0.00024986,2]
[362964282,1748537448082,-160.0,0.00024999,2]
[362964284,1748537448093,-355683.4096081,0.00025,2]
[362964286,1748537448103,-15899.58673455,0.00025,3]
[362964288,1748537448113,-160.43817396,0.00025,2]
[362964290,1748537448122,-27979.65885565,0.00025,30]
[362964292,1748537448136,-1886891.90277247,0.00025,30]
[362964295,1748537448146,-200.0,0.00025,10]
[362964296,1748537448155,-200.0,0.00025,10]
[362964298,1748537448165,-2000.0,0.00025,2]
[362964300,1748537448175,-110708.09722753,0.00025,2]
[362964302,1748537448186,-1913.2405789,0.00025,2]
[362964304,1748537448198,-1030.40069227,0.00025,2]
[362964318,1748537448324,-5000.0,0.00018986,2]
[362964320,1748537448333,-9738.99747904,0.00025,2]
[362964322,1748537448344,-12880.57880179,0.00025,2]
[362964332,1748537448437,-401.65992455,0.00019178,2]
[362964334,1748537448447,-409.7,0.00024966,10]
[362964336,1748537448456,-1957.88931229,0.00025,2]
[362964381,1748537448899,-424.85338045,0.00025,2]
[362964383,1748537448910,-2842.71038819,0.00025,2]
[362964385,1748537448922,-16596.99734305,0.00025,2]
[362964676,1748538064912,2579.0,0.00016,2]
[362964677,1748538201898,5000.0,0.00016,2]
[362964678,1748538218083,1912.37091801,0.00016,2]
[362964685,1748538437127,-180.25,0.00016153,2]
[362964686,1748538437149,-14.66287603,0.00016186,2]
[362964688,1748538519100,378.26600572,0.00013699,2]
[362964689,1748538519122,484.97169828,0.00013699,2]
[362964690,1748538548147,-4494.32534997,0.00016186,2]
[362964691,1748538548171,-173.7,0.00016856,2]
[362964692,1748538548193,-4.40985935,0.00017399,2]
[362964694,1748538558123,-212.57425911,0.00017399,2]
[362964695,1748538558145,-6282.99686363,0.00018032,2]
[362964698,1748538565122,-36.62981757,0.00018032,2]
[362964699,1748538565145,-260.54,0.0001826,2]
[362964700,1748538565166,-225.4149795,0.00018461,2]
[362964701,1748538565187,-50.2861599,0.00018513,2]
[362964716,1748538632281,-157.91,0.00016778,2]
[362964717,1748538632291,-236.86,0.00018176,2]
[362964719,1748538632300,-294.14966362,0.000188,2]
[362964724,1748538632345,-89.53241336,0.000188,2]
[362964725,1748538632355,-9.44332909,0.000189,2]
[362964766,1748538638097,-260.95207261,0.000189,2]
[362964768,1748538638107,-212.34,0.00019168,3]
[362964770,1748538638117,-637.02,0.00019168,3]
[362964772,1748538638126,-395.65056075,0.00019173,2]
[362964774,1748538638135,-500.0,0.00019173,2]
[362964776,1748538638144,-300.0,0.00019176,2]
[362964778,1748538638154,-300.0,0.00019176,2]
[362964780,1748538638163,-160.0,0.00019177,2]
[362964782,1748538638172,-178.32839605,0.00019177,2]
[362964784,1748538638182,-500.0,0.00019177,2]
[362964786,1748538638191,-509.92664818,0.00019177,2]
[362964788,1748538638200,-264.03851793,0.00019177,2]
[362964789,1748538638209,-607.16103316,0.00019177,2]
[362964791,1748538638219,-500.0,0.00019177,2]
[362964793,1748538638228,-734.33280725,0.00019177,2]
[362964795,1748538638237,-734.33280725,0.00019177,2]
[362964797,1748538638247,-500.0,0.00019177,2]
[362964799,1748538638257,-734.33280725,0.00019177,2]
[362964801,1748538638267,-734.33280725,0.00019177,2]
[362964804,1748538638276,-263.4530206,0.00019177,2]
[362964805,1748538638286,-734.33280725,0.00019177,2]
[362964808,1748538638296,-734.33280725,0.00019177,2]
[362964810,1748538638305,-734.33280725,0.00019177,2]
[362964811,1748538638314,-734.33280725,0.00019177,2]
[362964813,1748538638325,-734.33280725,0.00019177,2]
[362964815,1748538638335,-734.33280725,0.00019177,2]
[362964817,1748538638344,-500.0,0.00019177,2]
[362964818,1748538638353,-500.0,0.00019177,2]
[362964819,1748538638362,-734.33280725,0.00019177,2]
[362964820,1748538638371,-734.33280725,0.00019177,2]
[362964821,1748538638380,-734.33280725,0.00019177,2]
[362964822,1748538638389,-734.33280725,0.00019177,2]
[362964823,1748538638398,-734.33280725,0.00019177,2]
[362964824,1748538638407,-734.33280725,0.00019177,2]
[362964825,1748538638416,-734.33280725,0.00019177,2]
[362964826,1748538638424,-734.33280725,0.00019177,2]
[362964827,1748538638433,-734.33280725,0.00019177,2]
[362964828,1748538638442,-1037.44890633,0.00019177,2]
[362964829,1748538638451,-1037.44890633,0.00019177,2]
[362964830,1748538638460,-1037.44890633,0.00019177,2]
[362964831,1748538638469,-1037.44890633,0.00019177,2]
[362964832,1748538638478,-1037.44890633,0.00019177,2]
[362964833,1748538638487,-1037.44890633,0.00019177,2]
[362964834,1748538638496,-1037.44890633,0.00019177,2]
[362964835,1748538638505,-1037.44890633,0.00019177,2]
[362964836,1748538638514,-1037.44890633,0.00019177,2]
[362964837,1748538638523,-430.0,0.00019178,2]
[362964838,1748538638532,-430.0,0.00019178,2]
[362964839,1748538638542,-430.0,0.00019178,2]
[362964840,1748538638551,-430.0,0.00019178,2]
[362964841,1748538638559,-430.0,0.00019178,2]
[362964842,1748538638570,-500.0,0.00019178,2]
[362964844,1748538638580,-500.0,0.00019178,2]
[362964846,1748538638590,-500.0,0.00019178,2]
[362964848,1748538638600,-500.0,0.00019178,2]
[362964850,1748538638610,-500.0,0.00019178,2]
[362964852,1748538638619,-500.0,0.00019178,2]
[362964854,1748538638628,-500.0,0.00019178,2]
[362964856,1748538638638,-500.0,0.00019178,2]
[362964858,1748538638647,-500.0,0.00019178,2]
[362964860,1748538638657,-430.0,0.00019178,2]
[362964862,1748538638666,-430.0,0.00019178,2]
[362964864,1748538638675,-430.0,0.00019178,2]
[362964866,1748538638685,-430.0,0.00019178,2]
[362964868,1748538638695,-430.0,0.00019178,2]
[362964870,1748538638705,-430.0,0.00019178,2]
[362964872,1748538638716,-430.0,0.00019178,2]
[362964874,1748538638727,-400.0,0.00019178,2]
[362964876,1748538638737,-430.0,0.00019178,2]
[362964878,1748538638747,-430.0,0.00019178,2]
[362964880,1748538638758,-430.0,0.00019178,2]
[362964882,1748538638768,-290.0,0.00019178,2]
[362964884,1748538638777,-430.0,0.00019178,2]
[362964886,1748538638787,-430.0,0.00019178,2]
[362964888,1748538638798,-588.0,0.00019178,2]
[362964890,1748538638807,-430.0,0.00019178,2]
[362964892,1748538638817,-430.0,0.00019178,2]
[362964894,1748538638833,-400.0,0.00019178,2]
[362964895,1748538638843,-430.0,0.00019178,2]
[362964897,1748538638853,-430.0,0.00019178,2]
[362964899,1748538638863,-430.0,0.00019178,2]
[362964901,1748538638872,-430.0,0.00019178,2]
[362964903,1748538638882,-430.0,0.00019178,2]
[362964905,1748538638892,-430.0,0.00019178,2]
[362964907,1748538638902,-220.31,0.00019178,2]
[362964910,1748538638916,-500.0,0.00019178,2]
[362964912,1748538638926,-500.0,0.00019178,2]
[362964914,1748538638935,-500.0,0.00019178,2]
[362964916,1748538638946,-500.0,0.00019178,2]
[362964917,1748538638955,-500.0,0.00019178,2]
[362964920,1748538638965,-500.0,0.00019178,2]
[362964921,1748538638975,-500.0,0.00019178,2]
[362964923,1748538638986,-500.0,0.00019178,2]
[362964925,1748538638995,-420.99275203,0.00019178,2]
[362964929,1748538639016,-430.0,0.00019178,2]
[362964931,1748538639026,-430.0,0.00019178,2]
[362964933,1748538639036,-430.0,0.00019178,2]
[362964935,1748538639046,-430.0,0.00019178,2]
[362964937,1748538639056,-391.70334469,0.00019178,2]
[362964939,1748538639065,-380.0,0.00019178,2]
[362964941,1748538639077,-187.17554635,0.00019178,2]
[362964943,1748538639087,-430.0,0.00019178,2]
[362964945,1748538639096,-310.0,0.00019178,2]
[362964947,1748538639106,-430.0,0.00019178,2]
[362964949,1748538639116,-430.0,0.00019178,2]
[362964951,1748538639125,-430.0,0.00019178,2]
[362964953,1748538639136,-430.0,0.00019178,2]
[362964955,1748538639145,-500.0,0.00019178,2]
[362964957,1748538639155,-430.0,0.00019178,2]
[362964959,1748538639165,-430.0,0.00019178,2]
[362964961,1748538639174,-430.0,0.00019178,2]
[362964963,1748538639184,-242.37669839,0.00019178,2]
[362964965,1748538639194,-430.0,0.00019178,2]
[362964967,1748538639203,-549.74,0.00019178,2]
[362964969,1748538639212,-238.40839644,0.00019178,2]
[362964971,1748538639222,-430.0,0.00019178,2]
[362964973,1748538639231,-430.0,0.00019178,2]
[362964975,1748538639241,-430.0,0.00019178,2]
[362964977,1748538639251,-504.22,0.00019178,2]
[362964979,1748538639262,-430.0,0.00019178,2]
[362964981,1748538639271,-430.0,0.00019178,2]
[362964983,1748538639281,-430.0,0.00019178,2]
[362964985,1748538639291,-482.40494254,0.00019178,2]
[362964987,1748538639302,-430.0,0.00019178,2]
[362964989,1748538639312,-430.0,0.00019178,2]
[362964991,1748538639322,-249.64013652,0.00019178,2]
[362964993,1748538639332,-430.0,0.00019178,2]
[362964995,1748538639341,-430.0,0.00019178,2]
[362964997,1748538639351,-430.0,0.00019178,2]
[362964999,1748538639361,-491.84860978,0.00019178,2]
[362965001,1748538639371,-430.0,0.00019178,2]
[362965003,1748538639381,-401.57520692,0.00019178,2]
[362965005,1748538639391,-430.0,0.00019178,2]
[362965007,1748538639401,-430.0,0.00019178,2]
[362965009,1748538639412,-430.0,0.00019178,2]
[362965011,1748538639421,-208.64412834,0.00019178,2]
[362965013,1748538639431,-500.0,0.00019178,2]
[362965015,1748538639441,-500.0,0.00019178,2]
[362965017,1748538639451,-500.0,0.00019178,2]
[362965019,1748538639460,-252.49464171,0.00019178,2]
[362965021,1748538639470,-432.0471224,0.00019178,2]
[362965023,1748538639481,-430.0,0.00019178,2]
[362965025,1748538639492,-430.0,0.00019178,2]
[362965027,1748538639501,-430.0,0.00019178,2]
[362965029,1748538639511,-247.22,0.00019178,2]
[362965031,1748538639520,-267.38590162,0.00019178,2]
[362965033,1748538639530,-430.0,0.00019178,2]
[362965035,1748538639539,-430.0,0.00019178,2]
[362965037,1748538639549,-430.0,0.00019178,2]
[362965039,1748538639560,-430.0,0.00019178,2]
[362965041,1748538639570,-430.0,0.00019178,2]
[362965043,1748538639580,-430.0,0.00019178,2]
[362965045,1748538639589,-430.0,0.00019178,2]
[362965047,1748538639599,-430.0,0.00019178,2]
[362965049,1748538639610,-430.0,0.00019178,2]
[362965051,1748538639620,-430.0,0.00019178,2]
[362965053,1748538639630,-430.0,0.00019178,2]
[362965055,1748538639639,-430.0,0.00019178,2]
[362965057,1748538639650,-221.8996673,0.00019178,2]
[362965059,1748538639659,-430.0,0.00019178,2]
[362965061,1748538639670,-430.0,0.00019178,2]
[362965063,1748538639679,-430.0,0.00019178,2]
[362965065,1748538639689,-430.0,0.00019178,2]
[362965067,1748538639699,-372.11731761,0.00019178,2]
[362965069,1748538639709,-430.0,0.00019178,2]
[362965071,1748538639718,-430.0,0.00019178,2]
[362965073,1748538639727,-352.29109289,0.00019178,2]
[362965075,1748538639737,-430.0,0.00019178,2]
[362965077,1748538639747,-400.0,0.00019178,2]
[362965079,1748538639757,-401.90720509,0.00019178,2]
[362965081,1748538639768,-430.0,0.00019178,2]
[362965083,1748538639777,-430.0,0.00019178,2]
[362965085,1748538639787,-430.0,0.00019178,2]
[362965087,1748538639797,-430.0,0.00019178,2]
[362965089,1748538639807,-430.0,0.00019178,2]
[362965091,1748538639816,-400.0,0.00019178,2]
[362965093,1748538639828,-430.0,0.00019178,2]
[362965095,1748538639837,-430.0,0.00019178,2]
[362965097,1748538639848,-430.0,0.00019178,2]
[362965099,1748538639858,-430.0,0.00019178,2]
[362965101,1748538639868,-438.64760731,0.00019178,2]
[362965103,1748538639877,-430.0,0.00019178,2]
[362965105,1748538639887,-430.0,0.00019178,2]
[362965107,1748538639896,-405.95488008,0.00019178,2]
[362965109,1748538639907,-430.0,0.00019178,2]
[362965112,1748538639918,-430.0,0.00019178,2]
[362965115,1748538639928,-430.0,0.00019178,2]
[362965118,1748538639938,-430.0,0.00019178,2]
[362965120,1748538639949,-400.53549906,0.00019178,2]
[362965122,1748538639959,-430.0,0.00019178,2]
[362965124,1748538639970,-430.0,0.00019178,2]
[362965126,1748538639980,-430.0,0.00019178,2]
[362965128,1748538639991,-430.0,0.00019178,2]
[362965130,1748538640001,-430.0,0.00019178,2]
[362965132,1748538640011,-388.79222278,0.00019178,2]
[362965134,1748538640020,-430.0,0.00019178,2]
[362965136,1748538640030,-430.0,0.00019178,2]
[362965138,1748538640040,-430.0,0.00019178,2]
[362965140,1748538640051,-430.0,0.00019178,2]
[362965142,1748538640060,-400.0,0.00019178,2]
[362965144,1748538640070,-430.0,0.00019178,2]
[362965146,1748538640080,-430.0,0.00019178,2]
[362965147,1748538640089,-352.53912567,0.00019178,2]
[362965149,1748538640099,-430.0,0.00019178,2]
[362965151,1748538640108,-430.0,0.00019178,2]
[362965153,1748538640117,-430.0,0.00019178,2]
[362965155,1748538640127,-430.0,0.00019178,2]
[362965157,1748538640136,-401.39374335,0.00019178,2]
[362965159,1748538640146,-400.0,0.00019178,2]
[362965161,1748538640155,-430.0,0.00019178,2]
[362965163,1748538640165,-401.9514327,0.00019178,2]
[362965165,1748538640175,-430.0,0.00019178,2]
[362965167,1748538640184,-403.95886691,0.00019178,2]
[362965169,1748538640193,-430.0,0.00019178,2]
[362965171,1748538640203,-430.0,0.00019178,2]
[362965173,1748538640213,-430.0,0.00019178,2]
[362965175,1748538640222,-430.0,0.00019178,2]
[362965177,1748538640231,-430.0,0.00019178,2]
[362965179,1748538640240,-430.0,0.00019178,2]
[362965181,1748538640250,-400.0,0.00019178,2]
[362965183,1748538640259,-230.82570473,0.00019178,2]
[362965185,1748538640269,-400.0,0.00019178,2]
[362965187,1748538640278,-401.08225389,0.00019178,2]
[362965189,1748538640288,-430.0,0.00019178,2]
[362965191,1748538640297,-235.38061541,0.00019178,2]
[362965193,1748538640307,-430.0,0.00019178,2]
[362965195,1748538640316,-400.0,0.00019178,2]
[362965197,1748538640327,-411.53095189,0.00019178,2]
[362965199,1748538640338,-430.0,0.00019178,2]
[362965201,1748538640347,-300.0,0.00019178,2]
[362965203,1748538640357,-519.68,0.00019178,2]
[362965205,1748538640367,-510.22515371,0.00019178,2]
[362965207,1748538640377,-1086.01,0.00019178,2]
[362965209,1748538640387,-430.0,0.00019178,2]
[362965211,1748538640396,-430.0,0.00019178,2]
[362965213,1748538640406,-430.0,0.00019178,2]
[362965215,1748538640418,-430.0,0.00019178,2]
[362965217,1748538640428,-431.33136481,0.00019178,2]
[362965220,1748538640438,-325.04529126,0.00019178,2]
[362965221,1748538640447,-430.0,0.00019178,2]
[362965223,1748538640457,-430.0,0.00019178,2]
[362965226,1748538640466,-576.95169271,0.00019178,2]
[362965229,1748538640476,-430.88132088,0.00019178,2]
[362965232,1748538640485,-400.0,0.00019178,2]
[362965235,1748538640494,-430.0,0.00019178,2]
[362965238,1748538640503,-400.0,0.00019178,2]
[362965241,1748538640512,-430.0,0.00019178,2]
[362965244,1748538640522,-430.0,0.00019178,2]
[362965249,1748538640531,-236.30021752,0.00019178,2]
[362965252,1748538640541,-536.90917548,0.00019178,2]
[362965254,1748538640551,-430.0,0.00019178,2]
[362965256,1748538640560,-430.0,0.00019178,2]
[362965258,1748538640571,-402.07466146,0.00019178,2]
[362965260,1748538640580,-430.0,0.00019178,2]
[362965262,1748538640590,-430.0,0.00019178,2]
[362965281,1748538640754,-401.77027871,0.00019178,2]
[362965283,1748538640763,-565.63451897,0.00019178,2]
[362965285,1748538640772,-537.35,0.00019178,2]
[362965287,1748538640782,-456.26544977,0.00019178,2]
[362965289,1748538640791,-430.0,0.00019178,2]
[362965291,1748538640800,-430.0,0.00019178,2]
[362965292,1748538640809,-430.0,0.00019178,2]
[362965294,1748538640821,-430.0,0.00019178,2]
[362965296,1748538640831,-430.0,0.00019178,2]
[362965298,1748538640840,-461.7,0.00019178,2]
[362965300,1748538640849,-430.0,0.00019178,2]
[362965302,1748538640859,-430.0,0.00019178,2]
[362965304,1748538640868,-430.0,0.00019178,2]
[362965306,1748538640877,-430.0,0.00019178,2]
[362965308,1748538640887,-430.0,0.00019178,2]
[362965310,1748538640895,-468.67857071,0.00019178,2]
[362965312,1748538640906,-240.0,0.00019178,2]
[362965314,1748538640918,-430.0,0.00019178,2]
[362965316,1748538640927,-430.0,0.00019178,2]
[362965318,1748538640936,-430.0,0.00019178,2]
[362965320,1748538640947,-430.0,0.00019178,2]
[362965322,1748538640956,-430.0,0.00019178,2]
[362965324,1748538640966,-440.0,0.00019178,2]
[362965326,1748538640975,-430.0,0.00019178,2]
[362965328,1748538640985,-313.57907916,0.00019178,2]
[362965330,1748538640995,-323.87678373,0.00019178,2]
[362965332,1748538641007,-430.0,0.00019178,2]
[362965334,1748538641016,-430.0,0.00019178,2]
[362965336,1748538641026,-430.0,0.00019178,2]
[362965338,1748538641035,-430.0,0.00019178,2]